fUST/lending_fUST_20250704
["ID","MTS","AMOUNT","RATE_DAILY","PERIOD"]
[369604713,1751640650675,-587.0,0.00018461,2]
[369604715,1751640650684,-250.0,0.00018481,2]
[369604717,1751640650693,-204.389941,0.00018489,2]
[369604719,1751640650703,-204.389941,0.00018489,2]
[369604721,1751640650712,-1000.0,0.000185,2]
[369604723,1751640650721,-500.0,0.000185,2]
[369604725,1751640650731,-151.0,0.00018547,2]
[369604727,1751640650740,-168.0,0.00018554,2]
[369604729,1751640650748,-7807.73192747,0.00018555,2]
[369604731,1751640650758,-2000.0,0.000186,2]
[369604733,1751640650767,-2000.0,0.000186,2]
[369604735,1751640650776,-199.689485,0.0001863,2]
[369604737,1751640650785,-199.689485,0.0001863,2]
[369604739,1751640650794,-344.88243,0.0001863,2]
[369604741,1751640650803,-344.88243,0.0001863,2]
[369604743,1751640650813,-151.0,0.0001863,2]
[369604745,1751640650822,-151.0,0.0001863,2]
[369604747,1751640650831,-245.851277,0.0001863,2]
[369604749,1751640650840,-245.851277,0.0001863,2]
[369604751,1751640650849,-461.23,0.0001863,2]
[369604753,1751640650859,-460.0,0.0001863,2]
[369604755,1751640650868,-191.092026,0.0001863,2]
[369604757,1751640650877,-191.092026,0.0001863,2]
[369604759,1751640650886,-151.0,0.0001863,2]
[369604761,1751640650895,-460.0,0.0001863,2]
[369604763,1751640650905,-151.0,0.0001863,2]
[369604765,1751640650914,-151.0,0.0001863,2]
[369604767,1751640650923,-847.73,0.0001863,2]
[369604769,1751640650933,-151.0,0.0001863,2]
[369604771,1751640650942,-517.88,0.0001863,2]
[369604773,1751640650952,-460.0,0.0001863,2]
[369604775,1751640650961,-268.410571,0.0001863,2]
[369604777,1751640650971,-268.410571,0.0001863,2]
[369604779,1751640650980,-460.0,0.0001863,2]
[369604781,1751640650991,-386.258405,0.0001863,2]
[369604783,1751640651000,-386.258405,0.0001863,2]
[369604785,1751640651009,-460.0,0.0001863,2]
[369604787,1751640651019,-460.0,0.0001863,2]
[369604789,1751640651028,-826.84,0.0001863,2]
[369604791,1751640651037,-1197.41,0.0001863,2]
[369604793,1751640651047,-460.0,0.0001863,2]
[369604795,1751640651056,-1910.38,0.0001863,2]
[369604797,1751640651067,-2069.31,0.0001863,2]
[369604799,1751640651076,-460.0,0.0001863,2]
[369604801,1751640651085,-504.29,0.0001863,2]
[369604803,1751640651095,-460.0,0.0001863,2]
[369604805,1751640651105,-151.0,0.0001863,2]
[369604807,1751640651118,-2336.09,0.0001863,2]
[369604809,1751640651127,-528.35,0.0001863,2]
[369604811,1751640651136,-460.0,0.0001863,2]
[369604813,1751640651145,-460.0,0.0001863,2]
[369604815,1751640651156,-3186.0,0.0001863,2]
[369604817,1751640651165,-1109.69,0.0001863,2]
[369604819,1751640651175,-486.66,0.0001863,2]
[369604822,1751640651184,-460.0,0.0001863,2]
[369604823,1751640651194,-460.0,0.0001863,2]
[369604825,1751640651202,-460.0,0.0001863,2]
[369604827,1751640651211,-460.0,0.0001863,2]
[369604829,1751640651220,-695.289758,0.0001863,2]
[369604831,1751640651230,-460.0,0.0001863,2]
[369604833,1751640651240,-851.9,0.0001863,2]
[369604835,1751640651249,-1732.35,0.0001863,2]
[369604838,1751640651258,-695.289758,0.0001863,2]
[369604840,1751640651267,-460.0,0.0001863,2]
[369604841,1751640651277,-2462.41,0.0001863,2]
[369604843,1751640651286,-1328.47,0.0001863,2]
[369604846,1751640651295,-460.0,0.0001863,2]
[369604847,1751640651304,-460.0,0.0001863,2]
[369604849,1751640651314,-460.0,0.0001863,2]
[369604851,1751640651324,-2350.03,0.0001863,2]
[369604853,1751640651333,-460.0,0.0001863,2]
[369604855,1751640651343,-460.0,0.0001863,2]
[369604857,1751640651352,-460.0,0.0001863,2]
[369604859,1751640651362,-460.0,0.0001863,2]
[369604861,1751640651371,-1095.01,0.0001863,2]
[369604863,1751640651383,-460.0,0.0001863,2]
[369604865,1751640651394,-281.20333584,0.0001863,2]
[369604867,1751640651403,-460.0,0.0001863,2]
[369604869,1751640651413,-745.01620675,0.0001863,2]
[369604871,1751640651422,-992.0,0.0001863,2]
[369604873,1751640651431,-460.0,0.0001863,2]
[369604875,1751640651441,-1140.44,0.0001863,2]
[369604877,1751640651450,-941.59,0.0001863,2]
[369604879,1751640651463,-460.0,0.0001863,2]
[369604881,1751640651472,-1431.76,0.0001863,2]
[369604883,1751640651481,-2898.45,0.0001863,2]
[369604886,1751640651490,-460.0,0.0001863,2]
[369604887,1751640651500,-460.0,0.0001863,2]
[369604889,1751640651509,-460.0,0.0001863,2]
[369604892,1751640651519,-460.0,0.0001863,2]
[369604893,1751640651528,-460.0,0.0001863,2]
[369604895,1751640651537,-3672.38,0.0001863,2]
[369604897,1751640651547,-460.0,0.0001863,2]
[369604899,1751640651556,-460.0,0.0001863,2]
[369604901,1751640651566,-460.0,0.0001863,2]
[369604903,1751640651575,-418.17851885,0.0001863,2]
[369604905,1751640651584,-575.58,0.0001863,2]
[369604908,1751640651594,-764.38,0.0001863,2]
[369604910,1751640651603,-460.0,0.0001863,2]
[369604922,1751640651613,-1198.98,0.0001863,2]
[369604924,1751640651720,-237.0,0.00018631,2]
[369604926,1751640651730,-151.0,0.000187,2]
[369604928,1751640651739,-168.0,0.00018741,2]
[369604930,1751640651749,-200.0,0.00018743,2]
[369604932,1751640651758,-150.85,0.000188,7]
[369604934,1751640651767,-151.0,0.00018824,3]
[369604936,1751640651777,-151.0,0.00018831,2]
[369604939,1751640651786,-151.0,0.00018831,2]
[369604941,1751640651795,-155.737143,0.00018831,2]
[369604943,1751640651804,-155.737143,0.00018831,2]
[369604944,1751640651816,-151.0,0.00018831,2]
[369604947,1751640651826,-7807.73192747,0.00018831,2]
[369604948,1751640651835,-191.092026,0.00018847,2]
[369604950,1751640651844,-191.092018,0.00018847,2]
[369604952,1751640651853,-151.0,0.00018847,2]
[369604954,1751640651863,-151.0,0.00018847,2]
[369604956,1751640651871,-268.410571,0.00018847,2]
[369604958,1751640651881,-268.410566,0.00018847,2]
[369604960,1751640651890,-386.258405,0.00018847,2]
[369604962,1751640651899,-386.258396,0.00018847,2]
[369604964,1751640651908,-151.0,0.00018847,2]
[369604966,1751640651916,-695.289758,0.00018847,2]
[369604968,1751640651926,-695.289751,0.00018847,2]
[369604970,1751640651935,-151.0,0.00018856,2]
[369604972,1751640651944,-151.0,0.00018856,2]
[369604974,1751640651953,-151.0,0.00018856,2]
[369604976,1751640651963,-1021.05059314,0.0001886,2]
[369604978,1751640651972,-198.633695,0.00018865,2]
[369604980,1751640651981,-240.791481,0.00018865,2]
[369604982,1751640651990,-204.389941,0.00018865,2]
[369604984,1751640652000,-204.389941,0.00018865,2]
[369604986,1751640652009,-245.851277,0.00018869,2]
[369604988,1751640652018,-245.851277,0.00018869,2]
[369604990,1751640652028,-151.0,0.00018869,2]
[369604992,1751640652037,-276.820721,0.00018869,2]
[369604994,1751640652046,-204.679868,0.00018874,2]
[369604996,1751640652055,-204.679868,0.00018874,2]
[369604998,1751640652066,-12500.0,0.00018883,2]
[369605000,1751640652075,-151.0,0.00018891,2]
[369605002,1751640652085,-151.0,0.00018891,2]
[369605004,1751640652094,-151.0,0.00018891,2]
[369605006,1751640652104,-151.0,0.00018891,2]
[369605008,1751640652116,-151.0,0.00018891,2]
[369605010,1751640652125,-151.0,0.00018891,2]
[369605012,1751640652134,-151.0,0.00018891,2]
[369605014,1751640652143,-151.0,0.00018891,2]
[369605016,1751640652154,-151.0,0.00018891,2]
[369605018,1751640652163,-199.689485,0.00018891,2]
[369605021,1751640652172,-199.689485,0.00018891,2]
[369605023,1751640652183,-344.88243,0.00018891,2]
[369605025,1751640652193,-344.88243,0.00018891,2]
[369605027,1751640652203,-151.0,0.00018891,2]
[369605029,1751640652212,-151.0,0.00018891,2]
[369605031,1751640652221,-151.0,0.00018891,2]
[369605033,1751640652230,-155.737143,0.00018891,2]
[369605035,1751640652239,-155.737143,0.00018891,2]
[369605037,1751640652249,-151.0,0.00018891,2]
[369605039,1751640652258,-151.0,0.00018892,2]
[369605041,1751640652267,-12500.0,0.00018892,2]
[369605043,1751640652277,-2000.0,0.000189,2]
[369605045,1751640652286,-151.0,0.000189,2]
[369605047,1751640652295,-151.0,0.000189,2]
[369605049,1751640652305,-151.0,0.000189,2]
[369605051,1751640652315,-151.0,0.000189,2]
[369605053,1751640652325,-245.851277,0.000189,2]
[369605055,1751640652335,-245.851277,0.000189,2]
[369605057,1751640652344,-155.737143,0.000189,2]
[369605059,1751640652353,-155.737143,0.000189,2]
[369605061,1751640652363,-151.0,0.000189,2]
[369605063,1751640652373,-12500.0,0.00018901,2]
[369605065,1751640652383,-151.0,0.00018901,2]
[369605067,1751640652392,-151.0,0.00018901,2]
[369605069,1751640652402,-151.0,0.00018904,2]
[369605071,1751640652413,-204.389941,0.00018904,2]
[369605073,1751640652424,-204.389941,0.00018904,2]
[369605075,1751640652434,-204.679868,0.00018904,2]
[369605077,1751640652443,-204.679868,0.00018904,2]
[369605079,1751640652452,-245.851277,0.00018904,2]
[369605081,1751640652461,-245.851277,0.00018904,2]
[369605084,1751640652471,-461.23,0.00018904,2]
[369605086,1751640652480,-460.0,0.00018904,2]
[369605088,1751640652490,-460.0,0.00018904,2]
[369605089,1751640652499,-847.73,0.00018904,2]
[369605092,1751640652508,-517.88,0.00018904,2]
[369605093,1751640652517,-460.0,0.00018904,2]
[369605096,1751640652527,-460.0,0.00018904,2]
[369605098,1751640652537,-460.0,0.00018904,2]
[369605099,1751640652546,-460.0,0.00018904,2]
[369605102,1751640652556,-826.84,0.00018904,2]
[369605104,1751640652566,-1197.41,0.00018904,2]
[369605106,1751640652575,-460.0,0.00018904,2]
[369605108,1751640652584,-1910.38,0.00018904,2]
[369605110,1751640652593,-2069.31,0.00018904,2]
[369605112,1751640652603,-461.7,0.00018904,2]
[369605114,1751640652612,-504.29,0.00018904,2]
[369605115,1751640652621,-2336.09,0.00018904,2]
[369605117,1751640652630,-528.35,0.00018904,2]
[369605119,1751640652639,-312.37349419,0.00018904,2]
[369605121,1751640652649,-460.0,0.00018904,2]
[369605123,1751640652659,-3186.0,0.00018904,2]
[369605125,1751640652668,-1109.69,0.00018904,2]
[369605128,1751640652677,-460.0,0.00018904,2]
[369605130,1751640652687,-486.66,0.00018904,2]
[369605131,1751640652696,-460.0,0.00018904,2]
[369605133,1751640652705,-460.0,0.00018904,2]
[369605135,1751640652714,-460.0,0.00018904,2]
[369605137,1751640652723,-460.0,0.00018904,2]
[369605139,1751640652733,-851.9,0.00018904,2]
[369605142,1751640652743,-1732.35,0.00018904,2]
[369605144,1751640652752,-460.0,0.00018904,2]
[369605146,1751640652761,-2462.41,0.00018904,2]
[369605147,1751640652770,-1328.47,0.00018904,2]
[369605150,1751640652779,-460.0,0.00018904,2]
[369605152,1751640652789,-460.0,0.00018904,2]
[369605153,1751640652798,-460.0,0.00018904,2]
[369605156,1751640652807,-2350.03,0.00018904,2]
[369605158,1751640652818,-460.0,0.00018904,2]
[369605160,1751640652827,-460.0,0.00018904,2]
[369605162,1751640652836,-460.0,0.00018904,2]
[369605164,1751640652845,-1095.01,0.00018904,2]
[369605166,1751640652855,-460.0,0.00018904,2]
[369605168,1751640652864,-992.0,0.00018904,2]
[369605170,1751640652873,-460.0,0.00018904,2]
[369605172,1751640652882,-1140.44,0.00018904,2]
[369605174,1751640652891,-941.59,0.00018904,2]
[369605176,1751640652900,-460.0,0.00018904,2]
[369605177,1751640652909,-1431.76,0.00018904,2]
[369605179,1751640652918,-2898.45,0.00018904,2]
[369605181,1751640652927,-460.0,0.00018904,2]
[369605183,1751640652937,-460.0,0.00018904,2]
[369605185,1751640652946,-460.0,0.00018904,2]
[369605187,1751640652955,-460.0,0.00018904,2]
[369605189,1751640652964,-460.0,0.00018904,2]
[369605191,1751640652973,-3672.38,0.00018904,2]
[369605193,1751640652982,-460.0,0.00018904,2]
[369605195,1751640652991,-460.0,0.00018904,2]
[369605197,1751640653000,-764.38,0.00018904,2]
[369605200,1751640653010,-460.0,0.00018904,2]
[369605202,1751640653019,-1198.98,0.00018904,2]
[369605204,1751640653029,-160.0,0.00018979,3]
[369605206,1751640653038,-1123.68853,0.0001898,2]
[369605208,1751640653047,-15023.97236718,0.00018986,2]
[369605210,1751640653057,-223825.36658795,0.00018999,2]
[369605216,1751640653106,-4907.57988909,0.00018999,2]
[369605222,1751640653262,-830.16,0.00016438,2]
[369605223,1751640653272,-262.58,0.00016712,2]
[369605224,1751640653283,-314.0,0.00016712,2]
[369605280,1751640653882,-253.58,0.00016712,2]
[369605282,1751640653892,-151.0,0.00016712,2]
[369605284,1751640653901,-890.14750991,0.00016886,2]
[369606100,1751640791713,700.17461703,0.00024657,120]
[369606126,1751641063623,395.99162631,0.00027397,120]
[369606132,1751641183213,13314.25737561,0.00012,2]
[369606133,1751641183249,20000.0,0.00012,2]
[369606134,1751641183283,16618.61684567,0.00012,2]
[369606138,1751641342248,667.316128,0.00013699,2]
[369606201,1751641832719,-1077.8,0.00015337,2]
[369606202,1751641832731,-1325.2764493,0.00015337,2]
[369606203,1751641832743,-1426.51304286,0.00015337,2]
[369606204,1751641832778,-1021.94559574,0.00015337,2]
[369606205,1751641832787,-316.0,0.00015386,2]
[369606206,1751641832797,-300.0,0.00015386,2]
[369606213,1751641832982,-300.0,0.00015386,2]
[369606214,1751641832993,-193.0,0.00015386,2]
[369606215,1751641833004,-300.0,0.00015386,2]
[369606216,1751641833013,-1200.0,0.00015386,2]
[369606217,1751641833023,-186.159461,0.00015388,2]
[369606218,1751641833033,-306.36702746,0.00015388,2]
[369606241,1751641838573,-24593.63297254,0.00015388,2]
[369606242,1751641838583,-500.0,0.00016332,2]
[369606243,1751641838593,-200.93432495,0.00016332,2]
[369606244,1751641838603,-500.0,0.00016332,2]
[369606245,1751641838613,-500.0,0.00016332,2]
[369606246,1751641838623,-500.0,0.00016332,2]
[369606247,1751641838635,-298.47223045,0.00016332,2]
[369606248,1751641838645,-500.0,0.00016332,2]
[369606249,1751641838654,-500.0,0.00016332,2]
[369606250,1751641838664,-500.0,0.00016332,2]
[369606251,1751641838675,-500.0,0.00016332,2]
[369606252,1751641838684,-296.4720842,0.00016332,2]
[369606253,1751641838693,-528.86658606,0.00016332,2]
[369606254,1751641838703,-500.0,0.00016332,2]
[369606255,1751641838713,-500.0,0.00016332,2]
[369606256,1751641838722,-500.0,0.00016332,2]
[369606257,1751641838732,-238.65672953,0.00016332,2]
[369606258,1751641838741,-500.0,0.00016332,2]
[369606259,1751641838750,-500.0,0.00016332,2]
[369606260,1751641838760,-500.0,0.00016332,2]
[369606261,1751641838769,-370.25518503,0.00016332,2]
[369606263,1751641838779,-297.33357825,0.00016332,2]
[369606264,1751641838789,-500.0,0.00016332,2]
[369606265,1751641838798,-500.0,0.00016332,2]
[369606266,1751641838808,-500.0,0.00016332,2]
[369606267,1751641838818,-500.0,0.00016332,2]
[369606268,1751641838828,-500.0,0.00016332,2]
[369606269,1751641838837,-500.0,0.00016332,2]
[369606270,1751641838846,-500.0,0.00016332,2]
[369606271,1751641838855,-500.0,0.00016332,2]
[369606272,1751641838865,-500.0,0.00016332,2]
[369606273,1751641838874,-500.0,0.00016332,2]
[369606274,1751641838884,-500.0,0.00016332,2]
[369606275,1751641838904,-500.0,0.00016333,2]
[369606276,1751641838915,-1005.70661309,0.00016334,2]
[369606277,1751641838925,-569.70360674,0.00016337,2]
[369606278,1751641838936,-248517.43021059,0.00016338,2]
[369606279,1751641838947,-182.31659471,0.00016437,2]
[369606280,1751641838957,-460.0,0.00016438,2]
[369606281,1751641838966,-460.0,0.00016438,2]
[369606282,1751641838976,-460.0,0.00016438,2]
[369606283,1751641838986,-460.0,0.00016438,2]
[369606284,1751641838996,-460.0,0.00016438,2]
[369606285,1751641839007,-460.0,0.00016438,2]
[369606286,1751641839018,-374.99677448,0.00016438,2]
[369606287,1751641839028,-460.0,0.00016438,2]
[369606288,1751641839039,-460.0,0.00016438,2]
[369606289,1751641839050,-460.0,0.00016438,2]
[369606290,1751641839060,-460.0,0.00016438,2]
[369606291,1751641839070,-460.0,0.00016438,2]
[369606292,1751641839080,-460.0,0.00016438,2]
[369606293,1751641839090,-460.0,0.00016438,2]
[369606294,1751641839101,-460.0,0.00016438,2]
[369606295,1751641839111,-460.0,0.00016438,2]
[369606296,1751641839121,-460.0,0.00016438,2]
[369606297,1751641839133,-460.0,0.00016438,2]
[369606298,1751641839143,-460.0,0.00016438,2]
[369606299,1751641839153,-460.0,0.00016438,2]
[369606300,1751641839165,-460.0,0.00016438,2]
[369606301,1751641839175,-460.0,0.00016438,2]
[369606302,1751641839186,-460.0,0.00016438,2]
[369606303,1751641839197,-500.0,0.00016438,2]
[369606304,1751641839208,-500.0,0.00016438,2]
[369606305,1751641839219,-500.0,0.00016438,2]
[369606306,1751641839229,-258.97365063,0.00016438,2]
[369606307,1751641839239,-500.0,0.00016438,2]
[369606308,1751641839248,-313.04376125,0.00016438,2]
[369606309,1751641839258,-460.0,0.00016438,2]
[369606310,1751641839267,-460.0,0.00016438,2]
[369606311,1751641839277,-460.0,0.00016438,2]
[369606312,1751641839287,-269.8904321,0.00016438,2]
[369606313,1751641839296,-460.0,0.00016438,2]
[369606314,1751641839305,-460.0,0.00016438,2]
[369606315,1751641839315,-460.0,0.00016438,2]
[369606316,1751641839324,-460.0,0.00016438,2]
[369606317,1751641839334,-460.0,0.00016438,2]
[369606318,1751641839344,-460.0,0.00016438,2]
[369606319,1751641839354,-460.0,0.00016438,2]
[369606320,1751641839364,-460.0,0.00016438,2]
[369606321,1751641839374,-500.0,0.00016438,2]
[369606322,1751641839386,-523.86,0.00016438,2]
[369606323,1751641839396,-640.09,0.00016438,2]
[369606324,1751641839406,-460.0,0.00016438,2]
[369606325,1751641839417,-460.0,0.00016438,2]
[369606326,1751641839427,-460.0,0.00016438,2]
[369606327,1751641839438,-460.0,0.00016438,2]
[369606328,1751641839447,-460.0,0.00016438,2]
[369606329,1751641839457,-460.0,0.00016438,2]
[369606330,1751641839467,-460.0,0.00016438,2]
[369606331,1751641839477,-460.0,0.00016438,2]
[369606332,1751641839487,-460.0,0.00016438,2]
[369606333,1751641839496,-460.0,0.00016438,2]
[369606334,1751641839506,-460.0,0.00016438,2]
[369606335,1751641839520,-460.0,0.00016438,2]
[369606336,1751641839530,-460.0,0.00016438,2]
[369606337,1751641839540,-460.0,0.00016438,2]
[369606338,1751641839550,-460.0,0.00016438,2]
[369606339,1751641839560,-460.0,0.00016438,2]
[369606340,1751641839570,-460.0,0.00016438,2]
[369606341,1751641839580,-460.0,0.00016438,2]
[369606342,1751641839589,-460.0,0.00016438,2]
[369606343,1751641839600,-460.0,0.00016438,2]
[369606344,1751641839611,-460.0,0.00016438,2]
[369606345,1751641839622,-460.0,0.00016438,2]
[369606346,1751641839634,-722.47,0.00016438,2]
[369606347,1751641839644,-2619.68,0.00016438,2]
[369606348,1751641839654,-460.0,0.00016438,2]
[369606349,1751641839664,-460.0,0.00016438,2]
[369606350,1751641839674,-460.0,0.00016438,2]
[369606351,1751641839685,-1961.34,0.00016438,2]
[369606352,1751641839695,-460.0,0.00016438,2]
[369606353,1751641839705,-460.0,0.00016438,2]
[369606354,1751641839715,-622.75,0.00016438,2]
[369606355,1751641839726,-460.0,0.00016438,2]
[369606356,1751641839736,-460.0,0.00016438,2]
[369606357,1751641839745,-929.66,0.00016438,2]
[369606358,1751641839755,-460.0,0.00016438,2]
[369606359,1751641839766,-460.0,0.00016438,2]
[369606360,1751641839776,-460.0,0.00016438,2]
[369606361,1751641839786,-276.76,0.00016438,2]
[369606362,1751641839796,-460.0,0.00016438,2]
[369606363,1751641839806,-460.0,0.00016438,2]
[369606364,1751641839816,-460.1135327,0.00016438,2]
[369606365,1751641839827,-460.0,0.00016438,2]
[369606366,1751641839837,-781.58,0.00016438,2]
[369606367,1751641839847,-159.85101094,0.00016438,2]
[369606368,1751641839857,-1015.51,0.00016438,2]
[369606369,1751641839867,-859.27,0.00016438,2]
[369606370,1751641839877,-460.0,0.00016438,2]
[369606371,1751641839889,-460.0,0.00016438,2]
[369606372,1751641839899,-460.0,0.00016438,2]
[369606373,1751641839908,-460.0,0.00016438,2]
[369606374,1751641839919,-460.0,0.00016438,2]
[369606375,1751641839930,-1471.94,0.00016438,2]
[369606376,1751641839941,-460.0,0.00016438,2]
[369606377,1751641839951,-460.0,0.00016438,2]
[369606378,1751641839962,-460.0,0.00016438,2]
[369606379,1751641839975,-460.0,0.00016438,2]
[369606380,1751641839985,-460.0,0.00016438,2]
[369606381,1751641839995,-460.0,0.00016438,2]
[369606382,1751641840005,-460.0,0.00016438,2]
[369606384,1751641840015,-1035.37,0.00016438,2]
[369606385,1751641840026,-460.0,0.00016438,2]
[369606386,1751641840037,-1742.32,0.00016438,2]
[369606387,1751641840048,-460.0,0.00016438,2]
[369606388,1751641840058,-465.76536114,0.00016438,2]
[369606389,1751641840068,-460.0,0.00016438,2]
[369606390,1751641840078,-460.0,0.00016438,2]
[369606391,1751641840087,-460.0,0.00016438,2]
[369606392,1751641840096,-460.0,0.00016438,2]
[369606393,1751641840106,-460.0,0.00016438,2]
[369606394,1751641840115,-636.99,0.00016438,2]
[369606395,1751641840124,-460.0,0.00016438,2]
[369606396,1751641840135,-717.93,0.00016438,2]
[369606397,1751641840144,-460.0,0.00016438,2]
[369606398,1751641840153,-460.0,0.00016438,2]
[369606399,1751641840163,-460.0,0.00016438,2]
[369606400,1751641840172,-460.0,0.00016438,2]
[369606401,1751641840182,-460.0,0.00016438,2]
[369606402,1751641840191,-460.0,0.00016438,2]
[369606403,1751641840201,-460.0,0.00016438,2]
[369606404,1751641840211,-496.38,0.00016438,2]
[369606405,1751641840220,-162.44540029,0.00016438,2]
[369606406,1751641840229,-460.0,0.00016438,2]
[369606407,1751641840239,-460.0,0.00016438,2]
[369606408,1751641840249,-460.0,0.00016438,2]
[369606409,1751641840259,-460.0,0.00016438,2]
[369606410,1751641840268,-460.0,0.00016438,2]
[369606412,1751641840277,-2278.9,0.00016438,2]
[369606413,1751641840286,-460.0,0.00016438,2]
[369606414,1751641840296,-460.0,0.00016438,2]
[369606415,1751641840306,-701.4,0.00016438,2]
[369606416,1751641840316,-460.0,0.00016438,2]
[369606417,1751641840325,-460.0,0.00016438,2]
[369606418,1751641840335,-598.27870759,0.00016438,2]
[369606419,1751641840344,-1523.2,0.00016438,2]
[369606420,1751641840354,-462.70684945,0.00016438,2]
[369606421,1751641840363,-235.33781187,0.00016438,2]
[369606422,1751641840373,-535.27,0.00016438,2]
[369606423,1751641840383,-460.0,0.00016438,2]
[369606424,1751641840394,-460.0,0.00016438,2]
[369606425,1751641840409,-460.0,0.00016438,2]
[369606426,1751641840419,-460.0,0.00016438,2]
[369606427,1751641840429,-460.0,0.00016438,2]
[369606428,1751641840439,-1823.0,0.00016438,2]
[369606429,1751641840448,-466.18,0.00016438,2]
[369606430,1751641840459,-460.0,0.00016438,2]
[369606431,1751641840475,-460.0,0.00016438,2]
[369606432,1751641840493,-460.0,0.00016438,2]
[369606433,1751641840503,-460.0,0.00016438,2]
[369606434,1751641840513,-460.0,0.00016438,2]
[369606435,1751641840523,-460.0,0.00016438,2]
[369606436,1751641840534,-500.0,0.00016438,2]
[369606437,1751641840543,-490.99,0.00016438,2]
[369606438,1751641840553,-1692.7,0.00016438,2]
[369606439,1751641840563,-1656.81,0.00016438,2]
[369606440,1751641840573,-460.0,0.00016438,2]
[369606441,1751641840582,-1029.02,0.00016438,2]
[369606442,1751641840592,-460.0,0.00016438,2]
[369606443,1751641840602,-460.0,0.00016438,2]
[369606444,1751641840612,-460.0,0.00016438,2]
[369606445,1751641840622,-608.1,0.00016438,2]
[369606446,1751641840635,-460.0,0.00016438,2]
[369606447,1751641840645,-460.0,0.00016438,2]
[369606448,1751641840655,-339.98,0.00016438,2]
[369606449,1751641840664,-460.0,0.00016438,2]
[369606450,1751641840674,-460.0,0.00016438,2]
[369606451,1751641840684,-460.0,0.00016438,2]
[369606452,1751641840693,-1977.34,0.00016438,2]
[369606453,1751641840703,-460.0,0.00016438,2]
[369606454,1751641840714,-921.59,0.00016438,2]
[369606455,1751641840724,-460.0,0.00016438,2]
[369606456,1751641840734,-302.68778321,0.00016438,2]
[369606457,1751641840743,-460.0,0.00016438,2]
[369606458,1751641840753,-460.0,0.00016438,2]
[369606459,1751641840762,-1023.34,0.00016438,2]
[369606460,1751641840772,-460.0,0.00016438,2]
[369606461,1751641840781,-460.0,0.00016438,2]
[369606462,1751641840792,-569.7036067,0.00016474,2]
[369606463,1751641840802,-569.7036067,0.00016612,2]
[369606464,1751641841020,-1650.69713677,0.00016612,2]
[369606465,1751641841032,-3000.0,0.000167,2]
[369606466,1751641841042,-3000.0,0.0001671,2]
[369606467,1751641841051,-460.0,0.00016712,2]
[369606468,1751641841061,-460.0,0.00016712,2]
[369606469,1751641841071,-151.0,0.00016712,2]
[369606470,1751641841081,-460.0,0.00016712,2]
[369606471,1751641841090,-637.289426,0.00016712,2]
[369606472,1751641841099,-637.289426,0.00016712,2]
[369606473,1751641841109,-197.5757034,0.00016712,2]
[369606474,1751641841119,-460.0,0.00016712,2]
[369606475,1751641841128,-460.0,0.00016712,2]